[Event "Lueneburg Open-A 2019"]
[Site "Lueneburg"]
[Date "2019.08.11"]
[Round "9.26"]
[White "Nielsen, Joerg"]
[Black "Grote, Dirk"]
[Result "1/2-1/2"]
[ECO "B12"]
[WhiteElo "2000"]
[BlackElo "2037"]
[Annotator "NA"]
[PlyCount "188"]
[EventDate "2019.08.03"]
[EventType "swiss"]
[EventCountry "GER"]
[SourceTitle "playchess.com"]
[Source "ChessBase"]
[SourceQuality "1"]
[TimeControl "40/5400+30:1800+30"]

1. e4 {[%emt 0:00:00]} c6 {[%emt 0:00:00]} 2. d4 {[%emt 0:00:00]} d5 {[%emt 0:00:00]} 3. e5 {[%emt 0:00:00]} Bf5 {[%emt 0:00:03]} 4. Bd3 {[%emt 0:00:10]} Bxd3 {[%emt 0:00:33]} 5. Qxd3 {[%emt 0:00:07]} e6 {[%emt 0:00:21]} 6. Nf3 {[%emt 0:00:28]} Qa5+ {[%emt 0:00:15]} 7. Nbd2 {[%emt 0:01:34]} Qa6 {[%emt 0:00:45]} 8. Qxa6 {[%emt 0:05:57]} Nxa6 {[%emt 0:00:09]} 9. a3 {[%emt 0:00:27]} c5 {[%emt 0:02:06]} 10. c3 {[%emt 0:01:04]} h5 {[%emt 0:05:11]} 11. Nf1 {[%emt 0:02:16]} Ne7 {[%emt 0:06:16]} 12. Bg5 {[%emt 0:02:32]} Nf5 {[%emt 0:02:48]} 13. Ne3 {[%emt 0:01:46]} Nxe3 {[%emt 0:08:42]} 14. Bxe3 {[%emt 0:02:16]} Be7 {[%emt 0:00:43]} 15. Ke2 {[%emt 0:01:09]} O-O {[%emt 0:05:22]} 16. h3 {[%emt 0:07:05]} Rac8 {[%emt 0:08:16]} 17. Rac1 {[%emt 0:00:24]} b5 {[%emt 0:06:53]} 18. g4 {[%emt 0:06:54]} cxd4 {[%emt 0:19:56]} 19. Bxd4 {[%emt 0:02:36]} Nc5 {[%emt 0:04:38]} 20. Bxc5 {[%emt 0:06:42]} Rxc5 {[%emt 0:00:36]} 21. gxh5 {[%emt 0:02:21]} Rfc8 {[%emt 0:02:47]} 22. Rhg1 {[%emt 0:01:11]} a5 {[%emt 0:00:34]} 23. Rg4 {[%emt 0:05:45]} Rc4 {[%emt 0:00:52]} 24. Nd2 {[%emt 0:05:49]} R4c7 {[%emt 0:02:57]} 25. Rcg1 {[%emt 0:01:53]} Bf8 {[%emt 0:00:08]} 26. Kd3 {[%emt 0:06:20]} b4 {[%emt 0:01:29]} 27. axb4 {[%emt 0:00:22]} axb4 {[%emt 0:00:03]} 28. Nb1 {[%emt 0:11:06]} bxc3 {[%emt 0:01:20]} 29. bxc3 {[%emt 0:01:23]} Kh7 {[%emt 0:01:10]} 30. f3 {[%emt 0:04:24]} Kh6 {[%emt 0:02:21]} 31. Rf4 {[%emt 0:08:57]} Kh7 {[%emt 0:03:13]} 32. Rfg4 {[%emt 0:01:51]} Ra8 {[%emt 0:04:42]} 33. Rc1 {[%emt 0:09:04]} Ra1 {[%emt 0:01:03]} 34. Rgg1 {[%emt 0:01:27]} Kh6 {[%emt 0:04:47]} 35. Nd2 {[%emt 0:00:46]} Ra3 {[%emt 0:00:18]} 36. Nb1 {[%emt 0:00:34]} Ra2 {[%emt 0:00:39]} 37. Nd2 {[%emt 0:00:52]} Be7 {[%emt 0:03:13]} 38. Rb1 {[%emt 0:00:43]} Bg5 {[%emt 0:01:31]} 39. Rgd1 {[%emt 0:00:28]} Kxh5 {[%emt 0:00:38]} 40. Rb4 {[%emt 0:00:31]} Ra3 {[%emt 0:01:23]} 41. Nb3 {[%emt 0:01:28]} Kh6 {[%emt 0:10:03]} 42. Ra1 {[%emt 0:01:57]} Rxa1 {[%emt 0:00:33]} 43. Nxa1 {[%emt 0:00:07]} Ra7 {[%emt 0:00:30]} 44. Nc2 {[%emt 0:00:39]} Ra2 {[%emt 0:06:45]} 45. f4 {[%emt 0:07:29]} Bh4 {[%emt 0:04:07]} 46. f5 {[%emt 0:00:59]} Bg3 {[%emt 0:00:12]} 47. fxe6 {[%emt 0:02:20]} fxe6 {[%emt 0:00:53]} 48. Rb6 {[%emt 0:00:17]} Bxe5 {[%emt 0:00:53]} 49. Rxe6+ {[%emt 0:00:29]} Bf6 {[%emt 0:00:04]} 50. Rd6 {[%emt 0:03:12]} Ra5 {[%emt 0:01:04]} 51. Ne3 {[%emt 0:01:18]} Kh5 {[%emt 0:06:11]} 52. Nxd5 {[%emt 0:04:49]} Be5 {[%emt 0:00:10]} 53. Rd8 {[%emt 0:01:01]} Kh4 {[%emt 0:04:06]} 54. Rh8+ {[%emt 0:06:19]} Kg3 {[%emt 0:00:05]} 55. Ke4 {[%emt 0:01:23]} Bd6 {[%emt 0:01:31]} 56. Ne3 {[%emt 0:00:38]} g6 {[%emt 0:00:22]} 57. Nc4 {[%emt 0:01:22]} Ra4 {[%emt 0:00:24]} 58. Kd5 {[%emt 0:00:22]} Bf4 {[%emt 0:00:16]} 59. Nb2 {[%emt 0:02:12]} Ra2 {[%emt 0:00:16]} 60. Nd3 {[%emt 0:00:24]} Rd2 {[%emt 0:00:37]} 61. Kc4 {[%emt 0:00:28]} Be3 {[%emt 0:00:45]} 62. h4 {[%emt 0:01:03]} Rd1 {[%emt 0:00:16]} 63. Rg8 {[%emt 0:00:25]} Kxh4 {[%emt 0:00:11]} 64. Rxg6 {[%emt 0:00:07]} Kh5 {[%emt 0:00:06]} 65. Rg3 {[%emt 0:00:23]} Bg5 {[%emt 0:00:19]} 66. Kb5 {[%emt 0:01:51]} Kg6 {[%emt 0:01:42]} 67. c4 {[%emt 0:00:15]} Rb1+ {[%emt 0:00:40]} 68. Kc6 {[%emt 0:00:17]} Kf5 {[%emt 0:00:10]} 69. Rg2 {[%emt 0:00:28]} Be7 {[%emt 0:00:24]} 70. Re2 {[%emt 0:00:29]} Ba3 {[%emt 0:00:14]} 71. Re5+ {[%emt 0:00:43]} Kf6 {[%emt 0:00:03]} 72. Ra5 {[%emt 0:00:08]} Rb3 {[%emt 0:01:11]} 73. Nc5 {[%emt 0:00:28]} Re3 {[%emt 0:00:21]} 74. Nd7+ {[%emt 0:00:28]} Ke6 {[%emt 0:00:42]} 75. Ra8 {[%emt 0:00:31]} Rc3 {[%emt 0:00:35]} 76. Re8+ {[%emt 0:00:21]} Kf7 {[%emt 0:00:19]} 77. Re4 {[%emt 0:00:04]} Rc1 {[%emt 0:00:28]} 78. Nb6 {[%emt 0:00:24]} Rc3 {[%emt 0:00:51]} 79. Nd5 {[%emt 0:00:20]} Rc1 {[%emt 0:00:18]} 80. Nc7 {[%emt 0:00:19]} Rc2 {[%emt 0:00:41]} 81. Nb5 {[%emt 0:00:05]} Bb4 {[%emt 0:00:21]} 82. Rf4+ {[%emt 0:00:39]} Ke7 {[%emt 0:00:16]} 83. Nc7 {[%emt 0:00:22]} Ba3 {[%emt 0:00:31]} 84. Nd5+ {[%emt 0:00:36]} Ke6 {[%emt 0:00:54]} 85. Rf6+ {[%emt 0:01:03]} Ke5 {[%emt 0:00:03]} 86. Rf5+ {[%emt 0:00:33]} Kxf5 {[%emt 0:00:40]} 87. Ne3+ {[%emt 0:00:05]} Ke4 {[%emt 0:00:04]} 88. Nxc2 {[%emt 0:00:30]} Bf8 {[%emt 0:00:08]} 89. Kb5 {[%emt 0:00:43]} Kd3 {[%emt 0:00:43]} 90. Nb4+ {[%emt 0:00:31]} Kc3 {[%emt 0:00:57]} 91. Nc6 {[%emt 0:00:38]} Kb3 {[%emt 0:00:17]} 92. Ne5 {[%emt 0:01:02]} Kc3 {[%emt 0:00:45]} 93. Nd7 {[%emt 0:00:06]} Be7 {[%emt 0:00:26]} 94. Nb8 {[%emt 0:00:46]} Bd6 {[%emt 0:00:24]} 1/2-1/2

[Event "Lueneburg Open-A 2019"]
[Site "Lueneburg"]
[Date "2019.08.11"]
[Round "9.27"]
[White "Wobbe, Sven"]
[Black "Ziese, Gerhard"]
[Result "1-0"]
[ECO "C55"]
[WhiteElo "2019"]
[BlackElo "1897"]
[Annotator "NA"]
[PlyCount "123"]
[EventDate "2019.08.03"]
[EventType "swiss"]
[EventCountry "GER"]
[SourceTitle "playchess.com"]
[Source "ChessBase"]
[SourceQuality "1"]
[TimeControl "40/5400+30:1800+30"]

1. e4 {[%emt 0:00:00]} e5 {[%emt 0:00:00]} 2. Nf3 {[%emt 0:00:05]} Nc6 {[%emt 0:00:00]} 3. Bc4 {[%emt 0:00:14]} Nf6 {[%emt 0:00:00]} 4. d3 {[%emt 0:00:32]} Be7 {[%emt 0:00:11]} 5. c3 {[%emt 0:00:58]} O-O {[%emt 0:00:13]} 6. O-O {[%emt 0:00:23]} d6 {[%emt 0:01:01]} 7. Bb3 {[%emt 0:01:41]} Be6 {[%emt 0:00:29]} 8. Re1 {[%emt 0:05:47]} Bxb3 {[%emt 0:03:55]} 9. Qxb3 {[%emt 0:01:47]} b6 {[%emt 0:03:36]} 10. Nbd2 {[%emt 0:01:50]} Qd7 {[%emt 0:02:04]} 11. Nf1 {[%emt 0:01:17]} Rfe8 {[%emt 0:04:36]} 12. Ng3 {[%emt 0:01:20]} g6 {[%emt 0:01:44]} 13. Bg5 {[%emt 0:04:08]} Na5 {[%emt 0:05:49]} 14. Qd1 {[%emt 0:06:19]} c5 {[%emt 0:00:40]} 15. d4 {[%emt 0:03:51]} Qc7 {[%emt 0:02:18]} 16. d5 {[%emt 0:04:17]} Qd8 {[%emt 0:05:49]} 17. Qd2 {[%emt 0:14:49]} Nd7 {[%emt 0:02:09]} 18. Bxe7 {[%emt 0:01:21]} Qxe7 {[%emt 0:00:33]} 19. b3 {[%emt 0:02:35]} Nb7 {[%emt 0:02:48]} 20. Ne2 {[%emt 0:12:28]} Nf6 {[%emt 0:02:08]} 21. Qd3 {[%emt 0:01:10]} Rf8 {[%emt 0:02:32]} 22. Ng3 {[%emt 0:03:41]} Ne8 {[%emt 0:03:32]} 23. h4 {[%emt 0:06:17]} Ng7 {[%emt 0:00:35]} 24. Qd2 {[%emt 0:03:31]} f5 {[%emt 0:06:13]} 25. c4 {[%emt 0:08:09]} f4 {[%emt 0:02:52]} 26. Nf1 {[%emt 0:02:43]} h6 {[%emt 0:00:52]} 27. Qe2 {[%emt 0:01:51]} Kh7 {[%emt 0:01:38]} 28. N1h2 {[%emt 0:00:39]} Nh5 {[%emt 0:04:43]} 29. Red1 {[%emt 0:02:17]} Rae8 {[%emt 0:01:47]} 30. Rd3 {[%emt 0:03:38]} Rg8 {[%emt 0:02:55]} 31. Kf1 {[%emt 0:00:11]} Nf6 {[%emt 0:04:30]} 32. Ke1 {[%emt 0:00:41]} g5 {[%emt 0:01:26]} 33. hxg5 {[%emt 0:00:24]} hxg5 {[%emt 0:00:02]} 34. Kd2 {[%emt 0:00:59]} Rg7 {[%emt 0:02:07]} 35. Rh1 {[%emt 0:00:50]} Kg8 {[%emt 0:00:52]} 36. Kc2 {[%emt 0:01:46]} Qf7 {[%emt 0:01:22]} 37. Rdd1 {[%emt 0:01:56]} Qh5 {[%emt 0:04:23]} 38. Rde1 {[%emt 0:01:00]} g4 {[%emt 0:01:08]} 39. Nd2 {[%emt 0:00:34]} Qg6 {[%emt 0:03:41]} 40. Reg1 {[%emt 0:00:57]} Kf7 {[%emt 0:13:20]} 41. Nhf1 {[%emt 0:01:24]} Rh7 {[%emt 0:02:04]} 42. g3 {[%emt 0:05:45]} Reh8 {[%emt 0:05:03]} 43. Rxh7+ {[%emt 0:00:34]} Rxh7 {[%emt 0:00:41]} 44. f3 {[%emt 0:00:29]} gxf3 {[%emt 0:07:51]} 45. Qxf3 {[%emt 0:00:08]} Rg7 {[%emt 0:02:53]} 46. Rh1 {[%emt 0:02:44]} Qg4 {[%emt 0:05:15]} 47. Qxg4 {[%emt 0:01:16]} Rxg4 {[%emt 0:00:04]} 48. gxf4 {[%emt 0:00:50]} Rxf4 {[%emt 0:00:37]} 49. Rh8 {[%emt 0:01:28]} Ne8 {[%emt 0:03:25]} 50. Ne3 {[%emt 0:00:37]} Nf6 {[%emt 0:05:05]} 51. Ra8 {[%emt 0:01:23]} Kg6 {[%emt 0:00:29]} 52. Rxa7 {[%emt 0:00:29]} Nd8 {[%emt 0:00:07]} 53. Kd3 {[%emt 0:01:00]} Nf7 {[%emt 0:01:03]} 54. Rb7 {[%emt 0:01:48]} Ng5 {[%emt 0:00:15]} 55. Rxb6 {[%emt 0:00:51]} Nfxe4 {[%emt 0:01:11]} 56. Nxe4 {[%emt 0:00:21]} Nxe4 {[%emt 0:00:03]} 57. a4 {[%emt 0:00:23]} Nf2+ {[%emt 0:01:50]} 58. Ke2 {[%emt 0:00:23]} Rf6 {[%emt 0:00:08]} 59. a5 {[%emt 0:00:17]} Ne4 {[%emt 0:02:05]} 60. a6 {[%emt 0:02:15]} Kg5 {[%emt 0:00:53]} 61. Nd1 {[%emt 0:01:59]} Rh6 {[%emt 0:02:07]} 62. a7 {[%emt 0:00:48]} 1-0

[Event "Lueneburg Open-A 2019"]
[Site "Lueneburg"]
[Date "2019.08.11"]
[Round "9.29"]
[White "Serreck, Uwe"]
[Black "Reuker, Matthias"]
[Result "0-1"]
[ECO "B20"]
[WhiteElo "1869"]
[BlackElo "2012"]
[Annotator "NA"]
[PlyCount "88"]
[EventDate "2019.08.03"]
[EventType "swiss"]
[EventCountry "GER"]
[SourceTitle "playchess.com"]
[Source "ChessBase"]
[SourceQuality "1"]
[TimeControl "40/5400+30:1800+30"]

1. e4 {[%emt 0:00:00]} c5 {[%emt 0:01:22]} 2. b3 {[%emt 0:00:00]} Nc6 {[%emt 0:00:13]} 3. Bb2 {[%emt 0:00:07]} e5 {[%emt 0:00:10]} 4. Bc4 {[%emt 0:00:11]} Nf6 {[%emt 0:00:10]} 5. d3 {[%emt 0:02:25]} d6 {[%emt 0:02:46]} 6. Nc3 {[%emt 0:00:12]} Be7 {[%emt 0:01:06]} 7. Nge2 {[%emt 0:00:05]} a6 {[%emt 0:01:53]} 8. a4 {[%emt 0:00:18]} Nd4 {[%emt 0:02:18]} 9. Nd5 {[%emt 0:14:48]} Rb8 {[%emt 0:10:39]} 10. a5 {[%emt 0:21:54]} Bg4 {[%emt 0:03:23]} 11. f3 {[%emt 0:05:37]} Nxd5 {[%emt 0:00:12]} 12. Bxd5 {[%emt 0:07:26]} Bh4+ {[%emt 0:00:11]} 13. Ng3 {[%emt 0:02:32]} Be6 {[%emt 0:01:26]} 14. Bxe6 {[%emt 0:23:57]} Nxe6 {[%emt 0:01:00]} 15. O-O {[%emt 0:00:25]} Bxg3 {[%emt 0:01:41]} 16. hxg3 {[%emt 0:01:09]} h5 {[%emt 0:02:03]} 17. f4 {[%emt 0:03:16]} f6 {[%emt 0:17:23]} 18. Qf3 {[%emt 0:04:11]} Qe7 {[%emt 0:02:46]} 19. fxe5 {[%emt 0:01:14]} dxe5 {[%emt 0:13:17]} 20. Qf5 {[%emt 0:02:05]} Nd4 {[%emt 0:00:49]} 21. Qg6+ {[%emt 0:00:20]} Qf7 {[%emt 0:00:08]} 22. Qxf7+ {[%emt 0:00:23]} Kxf7 {[%emt 0:00:04]} 23. Rf2 {[%emt 0:00:31]} Ke6 {[%emt 0:02:54]} 24. Ra4 {[%emt 0:01:32]} Nc6 {[%emt 0:01:00]} 25. Ba3 {[%emt 0:01:18]} Kd6 {[%emt 0:04:38]} 26. Rc4 {[%emt 0:00:02]} Nxa5 {[%emt 0:00:21]} 27. Rxc5 {[%emt 0:00:09]} Nc6 {[%emt 0:00:07]} 28. Rd5+ {[%emt 0:01:11]} Ke6 {[%emt 0:00:43]} 29. Rd6+ {[%emt 0:00:48]} Kf7 {[%emt 0:00:03]} 30. Rd7+ {[%emt 0:00:39]} Kg6 {[%emt 0:00:09]} 31. Rd5 {[%emt 0:03:06]} Rhd8 {[%emt 0:01:19]} 32. c4 {[%emt 0:00:11]} Nd4 {[%emt 0:05:46]} 33. Bd6 {[%emt 0:01:26]} Rbc8 {[%emt 0:00:32]} 34. b4 {[%emt 0:00:53]} b5 {[%emt 0:02:26]} 35. Ra2 {[%emt 0:02:32]} bxc4 {[%emt 0:00:41]} 36. dxc4 {[%emt 0:00:00]} Rxc4 {[%emt 0:00:57]} 37. Rxa6 {[%emt 0:00:01]} Ne2+ {[%emt 0:05:05]} 38. Kf2 {[%emt 0:00:01]} Rxe4 {[%emt 0:00:42]} 39. b5 {[%emt 0:00:37]} Rd4 {[%emt 0:01:12]} 40. Kxe2 {[%emt 0:01:55]} Rxd5 {[%emt 0:00:17]} 41. Bc7 {[%emt 0:30:25]} Rd2+ {[%emt 0:31:17]} 42. Ke1 {[%emt 0:00:00]} Rd1+ {[%emt 0:00:00]} 43. Ke2 {[%emt 0:00:00]} R8d2+ {[%emt 0:00:00]} 44. Ke3 {[%emt 0:00:00]} Rxg2 {[%emt 0:00:00]} 0-1

[Event "Lueneburg Open-A 2019"]
[Site "Lueneburg"]
[Date "2019.08.11"]
[Round "9.30"]
[White "Fischer, Thomas"]
[Black "Rothenberg, Jannik"]
[Result "0-1"]
[ECO "C00"]
[WhiteElo "2106"]
[BlackElo "1859"]
[Annotator "NA"]
[PlyCount "96"]
[EventDate "2019.08.03"]
[EventType "swiss"]
[EventCountry "GER"]
[SourceTitle "playchess.com"]
[Source "ChessBase"]
[SourceQuality "1"]
[TimeControl "40/5400+30:1800+30"]

1. e4 {[%emt 0:00:00]} e6 {[%emt 0:00:34]} 2. Qe2 {[%emt 0:00:59]} Be7 {[%emt 0:00:34]} 3. f4 {[%emt 0:00:16]} d5 {[%emt 0:00:27]} 4. e5 {[%emt 0:00:13]} b6 {[%emt 0:04:52]} 5. Nf3 {[%emt 0:00:17]} Ba6 {[%emt 0:01:42]} 6. d3 {[%emt 0:00:14]} c5 {[%emt 0:01:35]} 7. c3 {[%emt 0:00:12]} Nc6 {[%emt 0:03:02]} 8. g3 {[%emt 0:01:38]} h5 {[%emt 0:06:38]} 9. Bh3 {[%emt 0:00:19]} Nh6 {[%emt 0:04:28]} 10. O-O {[%emt 0:00:09]} Qd7 {[%emt 0:02:37]} 11. a4 {[%emt 0:07:27]} O-O-O {[%emt 0:06:44]} 12. Na3 {[%emt 0:02:28]} Na5 {[%emt 0:06:21]} 13. Qc2 {[%emt 0:08:18]} Kb8 {[%emt 0:04:15]} 14. b3 {[%emt 0:10:48]} Ng4 {[%emt 0:09:04]} 15. Bd2 {[%emt 0:07:18]} c4 {[%emt 0:07:19]} 16. bxc4 {[%emt 0:04:44]} dxc4 {[%emt 0:02:41]} 17. d4 {[%emt 0:01:16]} Bb7 {[%emt 0:05:30]} 18. Bg2 {[%emt 0:04:08]} Bc6 {[%emt 0:04:14]} 19. Nb5 {[%emt 0:13:52]} a6 {[%emt 0:01:38]} 20. Nd6 {[%emt 0:00:41]} Bxd6 {[%emt 0:00:57]} 21. exd6 {[%emt 0:00:07]} Qxd6 {[%emt 0:01:43]} 22. f5 {[%emt 0:03:25]} Ka7 {[%emt 0:04:56]} 23. Bf4 {[%emt 0:01:08]} Qe7 {[%emt 0:02:36]} 24. Rae1 {[%emt 0:03:36]} Bd5 {[%emt 0:01:36]} 25. fxe6 {[%emt 0:05:58]} fxe6 {[%emt 0:01:54]} 26. h3 {[%emt 0:03:43]} Nf6 {[%emt 0:00:27]} 27. Re5 {[%emt 0:01:32]} Nc6 {[%emt 0:01:42]} 28. Re2 {[%emt 0:02:05]} Rhf8 {[%emt 0:01:40]} 29. Rfe1 {[%emt 0:00:22]} Qb7 {[%emt 0:00:49]} 30. Ng5 {[%emt 0:02:02]} Bxg2 {[%emt 0:02:29]} 31. Nxe6 {[%emt 0:00:41]} Bxh3 {[%emt 0:01:06]} 32. Nxf8 {[%emt 0:01:31]} Rxf8 {[%emt 0:00:27]} 33. Bd6 {[%emt 0:00:18]} Rf7 {[%emt 0:01:29]} 34. a5 {[%emt 0:01:06]} Nxa5 {[%emt 0:03:09]} 35. Re7 {[%emt 0:04:22]} Rxe7 {[%emt 0:00:02]} 36. Rxe7 {[%emt 0:00:11]} Nd7 {[%emt 0:00:14]} 37. Kh2 {[%emt 0:02:12]} Bg4 {[%emt 0:00:56]} 38. Rxg7 {[%emt 0:02:21]} Qd5 {[%emt 0:00:50]} 39. Bf4 {[%emt 0:03:33]} Qf5 {[%emt 0:00:30]} 40. Qg2 {[%emt 0:01:59]} Qf6 {[%emt 0:01:04]} 41. Be5 {[%emt 0:05:12]} Qc6 {[%emt 0:04:52]} 42. d5 {[%emt 0:01:05]} Qc5 {[%emt 0:00:50]} 43. Bd4 {[%emt 0:00:42]} Qd6 {[%emt 0:00:31]} 44. Qe4 {[%emt 0:05:02]} Nb3 {[%emt 0:04:32]} 45. Be5 {[%emt 0:11:02]} Qh6 {[%emt 0:07:02]} 46. Rf7 {[%emt 0:04:42]} Qd2+ {[%emt 0:00:55]} 47. Kg1 {[%emt 0:00:41]} Qd1+ {[%emt 0:00:52]} 48. Rf1 {[%emt 0:00:24]} Qxf1+ {[%emt 0:00:23]} 0-1

[Event "Lueneburg Open-A 2019"]
[Site "Lueneburg"]
[Date "2019.08.11"]
[Round "9.31"]
[White "Britsch, Benjamin"]
[Black "Bargsten, Justus"]
[Result "0-1"]
[ECO "D03"]
[WhiteElo "1835"]
[BlackElo "1946"]
[Annotator "NA"]
[PlyCount "62"]
[EventDate "2019.08.03"]
[EventType "swiss"]
[EventCountry "GER"]
[SourceTitle "playchess.com"]
[Source "ChessBase"]
[SourceQuality "1"]
[TimeControl "40/5400+30:1800+30"]

1. d4 {[%emt 0:00:00]} d5 {[%emt 0:01:10]} 2. Nf3 {[%emt 0:00:00]} Nf6 {[%emt 0:00:17]} 3. Bg5 {[%emt 0:00:00]} e6 {[%emt 0:00:41]} 4. e3 {[%emt 0:00:01]} c5 {[%emt 0:01:16]} 5. c3 {[%emt 0:00:15]} Nc6 {[%emt 0:00:14]} 6. Nbd2 {[%emt 0:00:18]} b6 {[%emt 0:01:19]} 7. Bb5 {[%emt 0:00:24]} Bd7 {[%emt 0:01:03]} 8. a4 {[%emt 0:07:37]} Bd6 {[%emt 0:01:16]} 9. e4 {[%emt 0:00:49]} h6 {[%emt 0:17:03]} 10. Bxf6 {[%emt 0:03:21]} gxf6 {[%emt 0:01:40]} 11. exd5 {[%emt 0:00:35]} exd5 {[%emt 0:00:05]} 12. Bd3 {[%emt 0:01:57]} Qe7+ {[%emt 0:08:26]} 13. Qe2 {[%emt 0:00:56]} Qxe2+ {[%emt 0:01:24]} 14. Kxe2 {[%emt 0:00:07]} O-O-O {[%emt 0:00:05]} 15. dxc5 {[%emt 0:01:15]} Rde8+ {[%emt 0:00:33]} 16. Kf1 {[%emt 0:03:44]} bxc5 {[%emt 0:01:12]} 17. h3 {[%emt 0:08:23]} Kc7 {[%emt 0:00:48]} 18. Nh4 {[%emt 0:09:13]} Rb8 {[%emt 0:00:33]} 19. Rb1 {[%emt 0:03:03]} Ne5 {[%emt 0:00:09]} 20. Bc2 {[%emt 0:00:27]} Rhe8 {[%emt 0:04:16]} 21. g3 {[%emt 0:03:57]} Rb7 {[%emt 0:03:04]} 22. f4 {[%emt 0:01:28]} Nc6 {[%emt 0:00:06]} 23. Nf5 {[%emt 0:02:58]} Bf8 {[%emt 0:00:14]} 24. Kf2 {[%emt 0:03:04]} c4 {[%emt 0:05:27]} 25. b3 {[%emt 0:04:44]} Bc5+ {[%emt 0:00:18]} 26. Kf1 {[%emt 0:00:54]} Bxf5 {[%emt 0:01:52]} 27. Bxf5 {[%emt 0:00:44]} Be3 {[%emt 0:00:07]} 28. Rh2 {[%emt 0:03:34]} Bxd2 {[%emt 0:06:56]} 29. Rxd2 {[%emt 0:00:02]} Rxb3 {[%emt 0:00:09]} 30. Rxb3 {[%emt 0:00:22]} cxb3 {[%emt 0:00:06]} 31. Rxd5 {[%emt 0:00:16]} Ne7 {[%emt 0:02:33]} 0-1

[Event "Lueneburg Open-A 2019"]
[Site "Lueneburg"]
[Date "2019.08.11"]
[Round "9.32"]
[White "Voigt, Martin"]
[Black "Darpan, Inani"]
[Result "1/2-1/2"]
[ECO "B52"]
[WhiteElo "2344"]
[BlackElo "1956"]
[Annotator "NA"]
[PlyCount "67"]
[EventDate "2019.08.03"]
[EventType "swiss"]
[EventCountry "GER"]
[SourceTitle "playchess.com"]
[Source "ChessBase"]
[SourceQuality "1"]
[TimeControl "40/5400+30:1800+30"]

1. e4 {[%emt 0:00:00]} c5 {[%emt 1:30:30]} 2. Nf3 {[%emt 0:00:10]} d6 {[%emt 0:00:00]} 3. Bb5+ {[%emt 0:00:07]} Bd7 {[%emt 0:01:00]} 4. Bxd7+ {[%emt 0:00:07]} Qxd7 {[%emt 0:00:30]} 5. O-O {[%emt 0:00:22]} Nf6 {[%emt 0:00:30]} 6. e5 {[%emt 0:00:20]} dxe5 {[%emt 0:00:00]} 7. Nxe5 {[%emt 0:00:09]} Qc8 {[%emt 0:01:00]} 8. Na3 {[%emt 0:04:06]} e6 {[%emt 0:00:00]} 9. Qf3 {[%emt 0:00:29]} Be7 {[%emt 0:00:00]} 10. Nac4 {[%emt 0:05:18]} O-O {[%emt 0:01:30]} 11. Na5 {[%emt 0:11:55]} Nbd7 {[%emt 0:00:30]} 12. Nxd7 {[%emt 0:01:17]} Qxd7 {[%emt 0:00:30]} 13. Qxb7 {[%emt 0:00:32]} Qxb7 {[%emt 0:00:30]} 14. Nxb7 {[%emt 0:00:08]} a5 {[%emt 0:00:30]} 15. d4 {[%emt 0:03:32]} cxd4 {[%emt 0:00:30]} 16. Bf4 {[%emt 0:18:22]} Ra7 {[%emt 0:00:30]} 17. Nd6 {[%emt 0:01:41]} Nh5 {[%emt 0:00:30]} 18. Be5 {[%emt 0:03:45]} Rd7 {[%emt 0:00:30]} 19. Nc4 {[%emt 0:04:46]} f6 {[%emt 0:00:30]} 20. Bg3 {[%emt 0:00:28]} Nxg3 {[%emt 0:00:30]} 21. hxg3 {[%emt 0:00:16]} Rc7 {[%emt 0:00:30]} 22. b3 {[%emt 0:03:25]} Bb4 {[%emt 0:00:30]} 23. Rad1 {[%emt 0:02:07]} e5 {[%emt 0:00:30]} 24. a4 {[%emt 0:01:59]} Rd8 {[%emt 0:00:30]} 25. f3 {[%emt 0:01:37]} Kf7 {[%emt 0:00:30]} 26. g4 {[%emt 0:01:51]} h6 {[%emt 0:00:30]} 27. g3 {[%emt 0:05:58]} Ke6 {[%emt 0:00:00]} 28. Kg2 {[%emt 0:00:18]} Rxc4 {[%emt 0:01:00]} 29. bxc4 {[%emt 0:00:15]} Rc8 {[%emt 0:00:30]} 30. Ra1 {[%emt 0:08:44]} Rxc4 {[%emt 0:00:30]} 31. Ra2 {[%emt 0:00:09]} Kd5 {[%emt 0:00:00]} 32. Kf2 {[%emt 0:00:20]} Rc3 {[%emt 0:01:00]} 33. Rd1 {[%emt 0:07:44]} Kc4 {[%emt 0:00:30]} 34. g5 {[%emt 0:13:34]} 1/2-1/2

[Event "Lueneburg Open-A 2019"]
[Site "Lueneburg"]
[Date "2019.08.11"]
[Round "9.33"]
[White "Wozny, Michael"]
[Black "Mandelkow, Elias"]
[Result "1/2-1/2"]
[ECO "A23"]
[WhiteElo "1942"]
[BlackElo "1741"]
[Annotator "NA"]
[PlyCount "109"]
[EventDate "2019.08.03"]
[EventType "swiss"]
[EventCountry "GER"]
[SourceTitle "playchess.com"]
[Source "ChessBase"]
[SourceQuality "1"]
[TimeControl "40/5400+30:1800+30"]

1. c4 {[%emt 0:00:00]} e5 {[%emt 0:00:00]} 2. Nc3 {[%emt 0:00:41]} Nf6 {[%emt 0:00:40]} 3. g3 {[%emt 0:00:33]} c6 {[%emt 0:00:38]} 4. Bg2 {[%emt 0:00:26]} d5 {[%emt 0:00:32]} 5. cxd5 {[%emt 0:04:02]} cxd5 {[%emt 0:00:43]} 6. d3 {[%emt 0:02:24]} Nc6 {[%emt 0:01:00]} 7. Nf3 {[%emt 0:00:54]} Bc5 {[%emt 0:02:02]} 8. O-O {[%emt 0:00:20]} Be6 {[%emt 0:01:58]} 9. Bd2 {[%emt 0:04:41]} Qd7 {[%emt 0:03:13]} 10. Ng5 {[%emt 0:02:27]} Bg4 {[%emt 0:02:16]} 11. h3 {[%emt 0:02:17]} Bh5 {[%emt 0:01:51]} 12. Rc1 {[%emt 0:02:30]} Bb6 {[%emt 0:02:14]} 13. Nf3 {[%emt 0:03:43]} e4 {[%emt 0:08:07]} 14. dxe4 {[%emt 0:01:03]} dxe4 {[%emt 0:01:58]} 15. Ng5 {[%emt 0:01:10]} Nd4 {[%emt 0:06:06]} 16. Be3 {[%emt 0:00:56]} Nxe2+ {[%emt 0:05:27]} 17. Nxe2 {[%emt 0:00:08]} Qxd1 {[%emt 0:00:13]} 18. Rfxd1 {[%emt 0:02:18]} Bxe2 {[%emt 0:01:30]} 19. Re1 {[%emt 0:00:59]} Bxe3 {[%emt 0:00:59]} 20. fxe3 {[%emt 0:00:03]} Bd3 {[%emt 0:01:07]} 21. Rc7 {[%emt 0:08:08]} O-O {[%emt 0:01:31]} 22. h4 {[%emt 0:00:19]} b6 {[%emt 0:01:13]} 23. Nh3 {[%emt 0:04:45]} Rfc8 {[%emt 0:02:50]} 24. Rec1 {[%emt 0:02:00]} Rxc7 {[%emt 0:05:57]} 25. Rxc7 {[%emt 0:00:02]} Ng4 {[%emt 0:02:14]} 26. Ng5 {[%emt 0:02:39]} f5 {[%emt 0:04:04]} 27. Ne6 {[%emt 0:00:25]} g6 {[%emt 0:01:35]} 28. Nf4 {[%emt 0:00:50]} Bb1 {[%emt 0:02:16]} 29. h5 {[%emt 0:00:18]} Rd8 {[%emt 0:05:40]} 30. Rc1 {[%emt 0:01:00]} Bxa2 {[%emt 0:03:20]} 31. hxg6 {[%emt 0:00:03]} hxg6 {[%emt 0:01:17]} 32. Nxg6 {[%emt 0:00:24]} Nxe3 {[%emt 0:01:18]} 33. Bh3 {[%emt 0:05:49]} Kf7 {[%emt 0:04:50]} 34. Nf4 {[%emt 0:00:35]} Be6 {[%emt 0:11:07]} 35. Rc6 {[%emt 0:03:27]} Re8 {[%emt 0:01:27]} 36. Bf1 {[%emt 0:06:05]} Nxf1 {[%emt 0:02:57]} 37. Kxf1 {[%emt 0:00:02]} b5 {[%emt 0:00:50]} 38. Kf2 {[%emt 0:00:27]} Bc4 {[%emt 0:01:12]} 39. Ke3 {[%emt 0:00:27]} a5 {[%emt 0:01:29]} 40. Nh5 {[%emt 0:01:13]} Re6 {[%emt 0:01:45]} 41. Rc7+ {[%emt 0:30:09]} Re7 {[%emt 0:30:29]} 42. Rc6 {[%emt 0:00:02]} Be6 {[%emt 0:02:28]} 43. Nf4 {[%emt 0:01:06]} Bd7 {[%emt 0:00:49]} 44. Rd6 {[%emt 0:00:48]} Be6 {[%emt 0:02:04]} 45. Rb6 {[%emt 0:01:35]} Bc4 {[%emt 0:03:20]} 46. b3 {[%emt 0:00:12]} Bf1 {[%emt 0:00:48]} 47. Nd5 {[%emt 0:00:31]} Re5 {[%emt 0:00:00]} 48. Kd4 {[%emt 0:00:00]} e3 {[%emt 0:00:00]} 49. Rb7+ {[%emt 0:00:00]} Kf8 {[%emt 0:00:00]} 50. Kxe5 {[%emt 0:00:00]} e2 {[%emt 0:00:00]} 51. Kf6 {[%emt 0:00:00]} e1=Q {[%emt 0:00:00]} 52. Rb8+ {[%emt 0:00:00]} Qe8 {[%emt 0:00:00]} 53. Rxe8+ {[%emt 0:00:00]} Kxe8 {[%emt 0:00:00]} 54. Kxf5 {[%emt 0:00:00]} Kf7 {[%emt 0:00:00]} 55. Ke5 {[%emt 0:00:00]} 1/2-1/2